Workbook

Sheet РТ 1 неделя
B9: Школа | C9: МБОУ"Дубровская СОШ" Пестречинский район | F9: Отд./корп | G9: среда | J9: День | K9: 2023-02-22
B11: Прием пищи | C11: Раздел | D11: № рец. | E11: Блюдо | F11: Выход, г | G11: Цена | H11: Калорийность | I11: Белки | J11: Жиры | K11: Углеводы
C12: гор.блюдо | D12: ТТК 2021 г | E12: Котлеты "Аппетитные" | F12: 90 | H12: 133.00 | I12: 10.80 | J12: 7.75 | K12: 8.00
C13: гор.напиток | D13: ТТК 2023 г | E13: Напиток из шиповника | F13: 200 | H13: 41.00 | I13: 0.01 | J13: 0.01 | K13: 10.18
B14: среда | C14: хлеб | E14: Хлеб ржано-пшеничный | F14: 20 | H14: 44.00 | I14: 1.00 | J14: 0.20 | K14: 9.00
C15: хлеб | E15: Хлеб пшеничный | F15: 15 | H15: 35.00 | I15: 1.14 | J15: 0.12 | K15: 7.38
B16: 2023-02-22 | C16: закуска | D16: № 45/2015 | E16: Салат из белокачанной капусты | F16: 60 | H16: 54.00 | I16: 0.93 | J16: 3.05 | K16: 5.64
C17: печенье | E17: Печенье весовое | F17: 30 | H17: 134.00 | I17: 2.07 | J17: 4.14 | K17: 22.23
B19: ИТОГО | G19: 64.19

Sheet РТ 2 неделя
B7: с 13 по 18 февраля (РТ) МЛАДШИЕ
B8: Школа | C8: - | F8: Отд./корп | J8: День
B10: Прием пищи | C10: Раздел | D10: № рец. | E10: Блюдо | F10: Выход, г | G10: Цена | H10: Калорийность | I10: Белки | J10: Жиры | K10: Углеводы
B11: Завтрак | C11: гор.блюдо | D11: ТТК 2020 г | E11: Тефтели из говядины в соусе томатном | F11: 110 | H11: 116.00 | I11: 5.50 | J11: 6.83 | K11: 5.46
C12: гор блюдо | D12: №302/2015 г | E12: Каша гречневая рассыпчатая | F12: 150 | H12: 213.00 | I12: 6.62 | J12: 5.39 | K12: 31.87
C13: гор.напиток | D13: ТТК 2021 г | E13: Компот из сушеных плодов (урюк) | F13: 200 | H13: 100.00 | I13: 1.00 | J13: 0.08 | K13: 23.56
B14: понедельник | C14: хлеб | E14: Хлеб ржано-пшеничный | F14: 15 | H14: 33.00 | I14: 0.75 | J14: 0.15 | K14: 6.75
C15: хлеб | E15: Хлеб пшеничный | F15: 20 | H15: 35.00 | I15: 1.14 | J15: 0.12 | K15: 7.38
D16: № 15/2015 г | E16: Сыр порциями | F16: 15 | H16: 53.00 | I16: 3.94 | J16: 3.99 | K16: 0.00
C17: печенье | E17: Печенье сдобное "Морковное" | F17: 15 | H17: 66.00 | I17: 0.97 | J17: 2.44 | K17: 10.00
B19: ИТОГО | F19: =F11+F12+F13+F14+F15+F16+F17 -> 525 | G19: 64.19 | H19: =H11+H12+H13+H14+H16+H17+H15 -> 616.00 | I19: =I11+I12+I13+I14+I16+I17+I15 -> 19.92 | J19: =J11+J12+J13+J14+J16+J17+J15 -> 19.00 | K19: =K11+K12+K13+K14+K16+K17+K15 -> 85.02
B20: Завтрак | C20: гор.блюдо | D20: ТТК 2021 | E20: Рагу из куриных грудок | F20: 200 | H20: 278.00 | I20: 12.04 | J20: 15.23 | K20: 23.20
B21: вторник | C21: гор.напиток | D21: ТТК 2021 | E21: Напиток из шиповника | F21: 200 | H21: 41.00 | I21: 0.01 | J21: 0.01 | K21: 10.18
C22: хлеб | E22: Хлеб ржано-пшеничный | F22: 20 | H22: 33.00 | I22: 0.75 | J22: 0.15 | K22: 6.75
C23: хлеб | E23: Хлеб пшеничный | F23: 20 | H23: 35.00 | I23: 1.14 | J23: 0.12 | K23: 7.38
C24: закуска | D24: № 45/2015 г | E24: Салат из белокочанной капусты | F24: 60 | H24: 51.00 | I24: 0.98 | J24: 3.05 | K24: 4.63
C25: фрукты | D25: № 338/2015г | E25: Плоды свежие (яблоки) | F25: 100 | H25: 47.00 | I25: 0.40 | J25: 0.40 | K25: 9.80
C26: печенье | D26: АКТ 2019 | E26: Печенье весовое | F26: 30 | H26: 114.00 | I26: 2.07 | J26: 4.14 | K26: 22.23
B28: ИТОГО | F28: =F20+F21+F22+F23+F24+F25+F26 -> 630 | G28: 64.19 | H28: =H20+H21+H22+H23+H24+H25+H26 -> 599.00 | I28: =I20+I21+I22+I23+I24+I25+I26 -> 17.39 | J28: =J20+J21+J22+J23+J24+J25+J26 -> 23.10 | K28: =K20+K21+K22+K23+K24+K25+K26 -> 84.17
B29: Завтрак | C29: гор.блюдо | D29: ТТК 2022 г | E29: Котлеты "Школьные" | F29: 90 | H29: 106 | I29: 9.30 | J29: 6.09 | K29: 3.60
C30: гор.блюдо | D30: № 304/2015 г | E30: Рис отварной с маслом сливочным | F30: 155 | H30: 257 | I30: 3.87 | J30: 9.05 | K30: 40.05
C31: гор.напиток | D31: № 699/2004 | E31: Напиток лимонный | F31: 200 | H31: 48.00 | I31: 0.12 | J31: 0.03 | K31: 11.57
B32: среда | C32: хлеб | E32: Хлеб ржано-пшеничный | F32: 20 | H32: 44.00 | I32: 1.00 | J32: 0.20 | K32: 9.00
C33: хлеб | E33: Хлеб пшеничный | F33: 20 | H33: 35.00 | I33: 1.14 | J33: 0.12 | K33: 7.38
C34: закуска | D34: №52/2015 г | E34: Свекла отварная с маслом | F34: 60 | H34: 56 | I34: 0.85 | J34: 3.65 | K34: 5.02
C35: печенье | E35: Печенье сдобное "Вкусное" | F35: 15 | H35: 66.00 | I35: 0.97 | J35: 2.44 | K35: 10.00
B37: ИТОГО | F37: =F29+F30+F31+F32+F33+F34+F35 -> 560 | G37: 64.19 | H37: =H29+H30+H31+H32+H33+H34+H35 -> 612.00 | I37: =I29+I30+I31+I32+I33+I34+I35 -> 17.25 | J37: =J29+J30+J31+J32+J33+J34+J35 -> 21.58 | K37: =K29+K30+K31+K32+K33+K34+K35 -> 86.62
B38: Завтрак | C38: гор.блюдо | D38: ТТК 2022 г | E38: Чикен | F38: 90 | H38: 125.00 | I38: 9.01 | J38: 4.11 | K38: 11.09
C39: гор.блюдо | D39: № 202/2015 г | E39: Макаронные изделия отварные | F39: 150 | H39: 127.00 | I39: 5.60 | J39: 5.06 | K39: 15.00
C40: гор.напиток | D40: № 699/2004 г | E40: Чай с сахаром, лимоном | F40: 213 | H40: 34.00 | I40: 0.07 | J40: 0.01 | K40: 6.80
C41: хлеб | E41: Хлеб ржано-пшеничный | F41: 15 | H41: 33.00 | I41: 0.75 | J41: 0.15 | K41: 6.75
C42: хлеб | E42: Хлеб пшеничный | F42: 15 | H42: 35.00 | I42: 1.14 | J42: 0.12 | K42: 7.38
C43: закуска | D43: ТТК | E43: Салат из моркови | F43: 60 | H43: 55.00 | I43: 0.41 | J43: 2.04 | K43: 5.34
B44: четверг | C44: фрукты | D44: № 336/2015 г | E44: Плоды свежие (яблоки) | F44: 100 | H44: 47.00 | I44: 0.4 | J44: 0.4 | K44: 9.8
C45: печенье | D45: ТТК 2020 г | E45: Печенье сдобное "Американер" с кунжутом | F45: 30 | H45: 160.00 | I45: 2.71 | J45: 8.32 | K45: 18.32
B47: ИТОГО | F47: =F38+F39+F40+F41+F42+F44+F45+F43 -> 673 | G47: 64.19 | H47: =+H45+H38+H39+H40+H41+H42+H44+H43 -> 616.00 | I47: =I38+I39+I40+I41+I42+I44+I45+I43 -> 20.09 | J47: =J38+J39+J40+J41+J42+J44+J45+J43 -> 20.21 | K47: =K38+K39+K40+K41+K42+K44+K45+K43 -> 80.48
B48: Завтрак | C48: гор.блюдо | D48: 3 47/2015 г | E48: Картофель тушеный с фаршем | F48: 180 | H48: 290 | I48: 13.38 | J48: 12.24 | K48: 24.7
C49: гор.напиток | D49: ТТК 2021г | E49: Напиток из замороженной черной смородины | F49: 200 | H49: 35 | I49: 0.11 | J49: 0.01 | K49: 8.29
B50: пятница | C50: хлеб | E50: Хлеб ржано-пшеничный | F50: 20 | H50: 44 | I50: 1.00 | J50: 0.20 | K50: 9.00
C51: хлеб | E51: Хлеб пшеничный | F51: 20 | H51: 35.00 | I51: 1.14 | J51: 0.12 | K51: 7.38
C52: закуска | D52: №47/2015 г | E52: Салат из квашенной капусты | F52: 60 | H52: 51.00 | I52: 0.98 | J52: 3.05 | K52: 4.63
C53: печенье | D53: ТТК 2020 г | E53: Печенье весовое | F53: 30 | H53: 114.00 | I53: 2.07 | J53: 4.14 | K53: 22.23
B55: ИТОГО | F55: =F48+F49+F50+F51+F52+F53 -> 510 | G55: 64.19 | H55: =H48+H49+H50+H51+H52+H53 -> 569 | I55: =I48+I49+I50+I51+I52+I53 -> 18.68 | J55: =J48+J49+J50+J51+J52+J53 -> 19.76 | K55: =K48+K49+K50+K51+K52+K53 -> 76.23
B56: Завтрак | C56: гор.блюдо | D56: № 243/2015 г | E56: Сосиски отварные | F56: 100 | H56: 144.00 | I56: 9.40 | J56: 11.00 | K56: 1.80
C57: гор.блюдо | D57: № 202/2015 г | E57: Макаронные изделия отварные | F57: 155 | H57: 127.00 | I57: 5.60 | J57: 5.06 | K57: 15.00
C58: гор.напиток | D58: № 348/2015 г | E58: Компот из плодов сушеных (урюк) | F58: 200 | H58: 100 | I58: 1.00 | J58: 0.08 | K58: 23.56
C59: хлеб | E59: Хлеб ржано-пшеничный | F59: 20 | H59: 33 | I59: 0.75 | J59: 0.15 | K59: 6.75
B60: Суббота | C60: хлеб | E60: Хлеб пшеничный | F60: 20 | H60: 35.00 | I60: 1.14 | J60: 0.12 | K60: 7.38
C61: фрукты | D61: № 338/2015 г | E61: Плоды свежие (яблоки) | F61: 100 | H61: 47.00 | I61: 0.40 | J61: 0.40 | K61: 9.80
B63: ИТОГО | F63: =F56+F57+F58+F59+F60+F61 -> 595 | G63: 64.19 | H63: =H56+H57+H58+H59+H60+H61 -> 486 | I63: =I56+I57+I58+I59+I60+I61 -> 18.29 | J63: =J56+J57+J58+J59+J60+J61 -> 16.81 | K63: =K56+K57+K58+K59+K60+K61 -> 64.29
